[Event "Late-Titled-Tuesday-Blitz-April-30-2024"]
[Site "Chess.com"]
[Date "2024.04.30"]
[Round "1"]
[White "albi1999"]
[Black "Andrii_Prydun"]
[Result "0-1"]
[WhiteElo "2643"]
[BlackElo "2375"]
[TimeControl "180+1"]
[EndTime "14:08:30 PDT"]
[Termination "Andrii_Prydun won by resignation"]

1. d4 {[%clk 0:02:55.6]} 1... Nf6 {[%clk 0:02:56.6]} 2. c4 {[%clk 0:02:55.6]}
2... e6 {[%clk 0:02:56.3]} 3. Nc3 {[%clk 0:02:54.6]} 3... d5 {[%clk 0:02:51.7]}
4. cxd5 {[%clk 0:02:53.2]} 4... Nxd5 {[%clk 0:02:51.7]} 5. Nf3 {[%clk
0:02:49.5]} 5... Be7 {[%clk 0:02:47.8]} 6. e4 {[%clk 0:02:48.5]} 6... Nxc3
{[%clk 0:02:47.5]} 7. bxc3 {[%clk 0:02:45.4]} 7... c5 {[%clk 0:02:48.4]} 8. Bd3
{[%clk 0:02:41.2]} 8... Nc6 {[%clk 0:02:47]} 9. O-O {[%clk 0:02:39.3]} 9... O-O
{[%clk 0:02:46.6]} 10. Be3 {[%clk 0:02:38.7]} 10... cxd4 {[%clk 0:02:34.4]} 11.
cxd4 {[%clk 0:02:38.6]} 11... b6 {[%clk 0:02:33.7]} 12. Rc1 {[%clk 0:02:38]}
12... Bb7 {[%clk 0:02:30.6]} 13. Qe2 {[%clk 0:02:38.2]} 13... Nb4 {[%clk
0:02:26]} 14. Rfd1 {[%clk 0:02:21.5]} 14... Nxd3 {[%clk 0:02:24.1]} 15. Qxd3
{[%clk 0:02:22.4]} 15... Bf6 {[%clk 0:02:17.6]} 16. Bf4 {[%clk 0:02:07.1]} 16...
Rc8 {[%clk 0:02:06.3]} 17. Rxc8 {[%clk 0:02:04.9]} 17... Qxc8 {[%clk 0:02:04.2]}
18. Bd6 {[%clk 0:02:04]} 18... Re8 {[%clk 0:01:49.2]} 19. h4 {[%clk 0:01:44.6]}
19... Qc6 {[%clk 0:01:42.1]} 20. Be5 {[%clk 0:01:40.9]} 20... Qxe4 {[%clk
0:01:35.9]} 21. Qa3 {[%clk 0:01:22.8]} 21... Qg4 {[%clk 0:01:31]} 22. Bg3 {[%clk
0:01:13.3]} 22... Ra8 {[%clk 0:01:10.7]} 23. Rc1 {[%clk 0:00:54.9]} 23... h6
{[%clk 0:01:02.3]} 24. Rc7 {[%clk 0:00:51.7]} 24... Bxf3 {[%clk 0:00:58.5]} 25.
gxf3 {[%clk 0:00:51.5]} 25... Qxd4 {[%clk 0:00:59.3]} 26. Rxa7 {[%clk 0:00:48]}
26... Rd8 {[%clk 0:00:40.4]} 27. Ra8 {[%clk 0:00:47.3]} 27... Bxh4 {[%clk
0:00:28.6]} 28. Rxd8+ {[%clk 0:00:24.7]} 28... Qxd8 {[%clk 0:00:27.6]} 29. Bxh4
{[%clk 0:00:10]} 29... Qxh4 {[%clk 0:00:28.5]} 30. Qa8+ {[%clk 0:00:10.3]} 30...
Kh7 {[%clk 0:00:27.9]} 31. Qb7 {[%clk 0:00:09.2]} 31... Qg5+ {[%clk 0:00:18.4]}
32. Kf1 {[%clk 0:00:08.4]} 32... Qf6 {[%clk 0:00:15]} 33. Kg2 {[%clk 0:00:05]}
33... Qg5+ {[%clk 0:00:08.8]} 34. Kf1 {[%clk 0:00:03.3]} 34... Qb5+ {[%clk
0:00:09.2]} 35. Kg2 {[%clk 0:00:03.3]} 35... Kg6 {[%clk 0:00:09.4]} 36. Qe7
{[%clk 0:00:02.1]} 36... Qc6 {[%clk 0:00:08]} 37. Qb4 {[%clk 0:00:01.4]} 37...
h5 {[%clk 0:00:08.1]} 38. Qf4 {[%clk 0:00:01.6]} 38... Qd5 {[%clk 0:00:07.2]}
39. Qc7 {[%clk 0:00:01.2]} 39... b5 {[%clk 0:00:07.4]} 40. Qb6 {[%clk
0:00:00.9]} 40... Qg5+ {[%clk 0:00:07.4]} 41. Kf1 {[%clk 0:00:01]} 41... Qd5
{[%clk 0:00:07.8]} 42. Kg2 {[%clk 0:00:01.1]} 42... Qxa2 {[%clk 0:00:07]} 43.
Qxb5 {[%clk 0:00:01.2]} 43... Qd5 {[%clk 0:00:07.7]} 44. Qe2 {[%clk 0:00:01.7]}
44... Kh6 {[%clk 0:00:07.5]} 45. Qe3+ {[%clk 0:00:01.9]} 45... g5 {[%clk
0:00:08]} 46. Qc3 {[%clk 0:00:01.6]} 46... g4 {[%clk 0:00:06.7]} 47. Qc7 {[%clk
0:00:02.3]} 47... Qxf3+ {[%clk 0:00:06.4]} 48. Kg1 {[%clk 0:00:03]} 48... h4
{[%clk 0:00:05.8]} 49. Qe7 {[%clk 0:00:02.7]} 49... Kh5 {[%clk 0:00:04.4]} 50.
Qf8 {[%clk 0:00:02.7]} 50... h3 {[%clk 0:00:03.9]} 51. Qh8+ {[%clk 0:00:02.9]}
51... Kg6 {[%clk 0:00:03]} 52. Qg8+ {[%clk 0:00:02.5]} 52... Kf6 {[%clk
0:00:03.1]} 53. Qd8+ {[%clk 0:00:02.2]} 53... Ke5 {[%clk 0:00:03.3]} 54. Qc7+
{[%clk 0:00:01.6]} 54... Kd4 {[%clk 0:00:02.8]} 55. Qb6+ {[%clk 0:00:01.6]}
55... Ke4 {[%clk 0:00:02.7]} 56. Qc6+ {[%clk 0:00:02.2]} 56... Ke5 {[%clk
0:00:02.7]} 57. Qc7+ {[%clk 0:00:02.3]} 57... Kf6 {[%clk 0:00:02.7]} 58. Qd8+
{[%clk 0:00:02.7]} 58... Kf5 {[%clk 0:00:03.1]} 59. Qa5+ {[%clk 0:00:02.3]}
59... e5 {[%clk 0:00:03.2]} 60. Kf1 {[%clk 0:00:02.3]} 60... Qd1+ {[%clk
0:00:02.8]} 61. Qe1 {[%clk 0:00:01]} 61... Qxe1+ {[%clk 0:00:02.9]} 62. Kxe1
{[%clk 0:00:01.9]} 62... h2 {[%clk 0:00:03.7]} 63. Ke2 {[%clk 0:00:02.8]} 63...
h1=Q {[%clk 0:00:04.6]} 64. f3 {[%clk 0:00:03.7]} 64... Qxf3+ {[%clk 0:00:05]}
0-1

[Event "Late-Titled-Tuesday-Blitz-April-30-2024"]
[Site "Chess.com"]
[Date "2024.04.30"]
[Round "1"]
[White "osielchesslover2011"]
[Black "Djager97"]
[Result "1-0"]
[WhiteElo "2215"]
[BlackElo "2562"]
[TimeControl "180+1"]
[EndTime "14:08:32 PDT"]
[Termination "osielchesslover2011 won on time"]

1. e4 {[%clk 0:02:59.3]} 1... e6 {[%clk 0:02:59.6]} 2. d4 {[%clk 0:02:59.4]}
2... d5 {[%clk 0:03:00.1]} 3. Nd2 {[%clk 0:02:59.9]} 3... c5 {[%clk 0:02:59.3]}
4. Ngf3 {[%clk 0:03:00]} 4... cxd4 {[%clk 0:02:58.1]} 5. exd5 {[%clk 0:02:59.8]}
5... Qxd5 {[%clk 0:02:58]} 6. Bc4 {[%clk 0:03:00.1]} 6... Qd6 {[%clk 0:02:57.6]}
7. O-O {[%clk 0:02:59.9]} 7... Nf6 {[%clk 0:02:57.8]} 8. Nb3 {[%clk 0:02:59.6]}
8... Nc6 {[%clk 0:02:58.4]} 9. Nbxd4 {[%clk 0:02:58]} 9... Nxd4 {[%clk
0:02:59.3]} 10. Nxd4 {[%clk 0:02:58.6]} 10... Be7 {[%clk 0:02:57.7]} 11. Nb5
{[%clk 0:02:56.1]} 11... Qc6 {[%clk 0:02:50.1]} 12. Qe2 {[%clk 0:02:40.4]} 12...
O-O {[%clk 0:02:48.9]} 13. Bf4 {[%clk 0:02:40.3]} 13... a6 {[%clk 0:02:20.9]}
14. Nd4 {[%clk 0:02:25.6]} 14... Qb6 {[%clk 0:02:05.3]} 15. Nb3 {[%clk
0:02:20.8]} 15... Bd7 {[%clk 0:02:01.9]} 16. Rad1 {[%clk 0:02:20.8]} 16... Bc6
{[%clk 0:02:01.3]} 17. Rfe1 {[%clk 0:02:18.1]} 17... Bd5 {[%clk 0:01:54.2]} 18.
Bxd5 {[%clk 0:02:15.7]} 18... Nxd5 {[%clk 0:01:55.1]} 19. Rxd5 {[%clk
0:02:15.1]} 19... exd5 {[%clk 0:01:33]} 20. Qxe7 {[%clk 0:02:14.8]} 20... h6
{[%clk 0:01:31.6]} 21. Qd6 {[%clk 0:02:05.9]} 21... Qxd6 {[%clk 0:01:27.3]} 22.
Bxd6 {[%clk 0:02:06.8]} 22... Rfe8 {[%clk 0:01:28]} 23. Rxe8+ {[%clk 0:01:58.4]}
23... Rxe8 {[%clk 0:01:28.9]} 24. Kf1 {[%clk 0:01:58.3]} 24... f6 {[%clk
0:01:27.5]} 25. Bf4 {[%clk 0:01:56.4]} 25... Kf7 {[%clk 0:01:25.1]} 26. Be3
{[%clk 0:01:56]} 26... h5 {[%clk 0:01:21]} 27. Ke2 {[%clk 0:01:56.4]} 27... g6
{[%clk 0:01:10]} 28. Kd3 {[%clk 0:01:56]} 28... Ke6 {[%clk 0:01:08.6]} 29. Nc5+
{[%clk 0:01:55]} 29... Kf5 {[%clk 0:01:06.1]} 30. Nxb7 {[%clk 0:01:54.1]} 30...
Rb8 {[%clk 0:01:06.2]} 31. Nc5 {[%clk 0:01:43.5]} 31... Rxb2 {[%clk 0:01:05.2]}
32. a4 {[%clk 0:01:43.5]} 32... Rb4 {[%clk 0:00:48]} 33. c3 {[%clk 0:01:24.2]}
33... Rc4 {[%clk 0:00:45]} 34. a5 {[%clk 0:01:17.6]} 34... Ke5 {[%clk
0:00:40.7]} 35. Nxa6 {[%clk 0:01:06.4]} 35... Ra4 {[%clk 0:00:40.5]} 36. Nb4
{[%clk 0:01:04.5]} 36... Kd6 {[%clk 0:00:40.8]} 37. a6 {[%clk 0:01:04.1]} 37...
f5 {[%clk 0:00:36.1]} 38. a7 {[%clk 0:01:03]} 38... g5 {[%clk 0:00:29.5]} 39. g3
{[%clk 0:00:13.7]} 39... h4 {[%clk 0:00:28.6]} 40. gxh4 {[%clk 0:00:13.6]} 40...
f4 {[%clk 0:00:28.7]} 41. Bd4 {[%clk 0:00:13.5]} 41... gxh4 {[%clk 0:00:26.3]}
42. Ke2 {[%clk 0:00:13.8]} 42... Kc7 {[%clk 0:00:12.2]} 43. Nxd5+ {[%clk
0:00:13.5]} 43... Kb7 {[%clk 0:00:12.7]} 44. Nxf4 {[%clk 0:00:14.1]} 44... Ra1
{[%clk 0:00:11.3]} 45. Kf3 {[%clk 0:00:14.7]} 45... Rh1 {[%clk 0:00:09]} 46. h3
{[%clk 0:00:15.3]} 46... Rg1 {[%clk 0:00:07.7]} 47. Ng6 {[%clk 0:00:13.3]} 47...
Rxg6 {[%clk 0:00:06.1]} 48. Ke3 {[%clk 0:00:11.9]} 48... Rg2 {[%clk 0:00:03.7]}
49. Kf3 {[%clk 0:00:11.2]} 49... Rg6 {[%clk 0:00:03.5]} 50. Kf4 {[%clk
0:00:09.4]} 50... Rg8 {[%clk 0:00:03.5]} 51. f3 {[%clk 0:00:09.7]} 51... Rg6
{[%clk 0:00:03.4]} 52. Kf5 {[%clk 0:00:08.9]} 52... Rg3 {[%clk 0:00:03.6]} 53.
f4 {[%clk 0:00:08.1]} 53... Rxh3 {[%clk 0:00:03.6]} 54. Kg4 {[%clk 0:00:08.6]}
54... Rh1 {[%clk 0:00:03.4]} 55. f5 {[%clk 0:00:08.8]} 55... h3 {[%clk
0:00:03.3]} 56. Kg3 {[%clk 0:00:08.7]} 56... Rf1 {[%clk 0:00:02.2]} 57. f6
{[%clk 0:00:07.7]} 57... Rf5 {[%clk 0:00:01.2]} 58. Kxh3 {[%clk 0:00:07.1]}
58... Rf4 {[%clk 0:00:00.5]} 59. Kg3 {[%clk 0:00:06.9]} 59... Rf5 {[%clk
0:00:00.9]} 60. Kg4 {[%clk 0:00:07.4]} 1-0

[Event "Late-Titled-Tuesday-Blitz-April-30-2024"]
[Site "Chess.com"]
[Date "2024.04.30"]
[Round "1"]
[White "zano2023"]
[Black "komogro"]
[Result "0-1"]
[WhiteElo "2135"]
[BlackElo "2558"]
[TimeControl "180+1"]
[EndTime "14:08:36 PDT"]
[Termination "komogro won on time"]

1. d4 {[%clk 0:02:58.3]} 1... Nf6 {[%clk 0:02:55.5]} 2. Nd2 {[%clk 0:02:47.4]}
2... d6 {[%clk 0:02:54.2]} 3. e4 {[%clk 0:02:46.5]} 3... g6 {[%clk 0:02:54.3]}
4. Ngf3 {[%clk 0:02:46.9]} 4... Bg7 {[%clk 0:02:54.5]} 5. Bd3 {[%clk 0:02:47.4]}
5... a6 {[%clk 0:02:53]} 6. O-O {[%clk 0:02:47.9]} 6... Nc6 {[%clk 0:02:52.4]}
7. c3 {[%clk 0:02:47]} 7... e6 {[%clk 0:02:51.1]} 8. Re1 {[%clk 0:02:47.5]} 8...
Ne7 {[%clk 0:02:51.2]} 9. Nf1 {[%clk 0:02:47.8]} 9... Nd7 {[%clk 0:02:51.3]} 10.
Ng3 {[%clk 0:02:48.3]} 10... b6 {[%clk 0:02:49.8]} 11. Be3 {[%clk 0:02:46.5]}
11... Bb7 {[%clk 0:02:49.6]} 12. Qd2 {[%clk 0:02:46.9]} 12... h6 {[%clk
0:02:49.7]} 13. h3 {[%clk 0:02:46]} 13... Kf8 {[%clk 0:02:48.9]} 14. Nh2 {[%clk
0:02:45.3]} 14... Kg8 {[%clk 0:02:47.6]} 15. f4 {[%clk 0:02:45.3]} 15... f5
{[%clk 0:02:44.9]} 16. exf5 {[%clk 0:02:36.5]} 16... exf5 {[%clk 0:02:45.8]} 17.
Nf3 {[%clk 0:02:28.8]} 17... Bxf3 {[%clk 0:02:42.1]} 18. gxf3 {[%clk 0:02:28.6]}
18... Kh7 {[%clk 0:02:41.3]} 19. Kh2 {[%clk 0:02:27.7]} 19... Re8 {[%clk
0:02:36.2]} 20. Qc2 {[%clk 0:02:22.5]} 20... Nf6 {[%clk 0:02:35.3]} 21. c4
{[%clk 0:02:19.7]} 21... Qd7 {[%clk 0:02:35]} 22. Bf2 {[%clk 0:02:19.3]} 22...
Nc6 {[%clk 0:02:28.2]} 23. a3 {[%clk 0:02:15.2]} 23... Ne7 {[%clk 0:02:21.8]}
24. Rad1 {[%clk 0:02:11.8]} 24... Kh8 {[%clk 0:02:20.6]} 25. d5 {[%clk
0:02:09.6]} 25... h5 {[%clk 0:02:17.9]} 26. Ne2 {[%clk 0:02:03.8]} 26... Bh6
{[%clk 0:02:13.6]} 27. Bh4 {[%clk 0:01:57.5]} 27... Nh7 {[%clk 0:02:11.4]} 28.
Qd2 {[%clk 0:01:53.9]} 28... c5 {[%clk 0:01:53.7]} 29. dxc6 {[%clk 0:01:48.7]}
29... Nxc6 {[%clk 0:01:53.7]} 30. b4 {[%clk 0:01:45.8]} 30... Kg8 {[%clk
0:01:40.7]} 31. Bc2 {[%clk 0:01:41.7]} 31... Ne5 {[%clk 0:01:39.2]} 32. Qd5+
{[%clk 0:01:39.3]} 32... Nf7 {[%clk 0:01:33.7]} 33. c5 {[%clk 0:01:26.1]} 33...
bxc5 {[%clk 0:01:30.9]} 34. bxc5 {[%clk 0:01:21.7]} 34... Qb5 {[%clk 0:01:30.8]}
35. Nd4 {[%clk 0:01:06.8]} 35... Bxf4+ {[%clk 0:01:26.9]} 36. Bg3 {[%clk
0:01:04.4]} 36... Bxg3+ {[%clk 0:01:23.2]} 37. Kxg3 {[%clk 0:01:04.6]} 37...
Qxc5 {[%clk 0:01:23.5]} 38. Bb3 {[%clk 0:00:49.4]} 38... Qxd5 {[%clk 0:01:16.9]}
39. Bxd5 {[%clk 0:00:48.8]} 39... Rac8 {[%clk 0:01:08.7]} 40. Rc1 {[%clk
0:00:45.3]} 40... Nf6 {[%clk 0:01:06.9]} 41. Be6 {[%clk 0:00:42]} 41... Rxc1
{[%clk 0:01:00.7]} 42. Rxc1 {[%clk 0:00:41.9]} 42... Re7 {[%clk 0:00:48.5]} 43.
Rc8+ {[%clk 0:00:40.7]} 43... Kg7 {[%clk 0:00:48.4]} 44. Bc4 {[%clk 0:00:37]}
44... Re3 {[%clk 0:00:41.1]} 45. Ne6+ {[%clk 0:00:36.4]} 45... Kh6 {[%clk
0:00:30.1]} 46. Rf8 {[%clk 0:00:35.6]} 46... Ne5 {[%clk 0:00:16.7]} 47. Rxf6
{[%clk 0:00:31.9]} 47... Nxc4 {[%clk 0:00:16.2]} 48. Nf4 {[%clk 0:00:26.6]}
48... Ne5 {[%clk 0:00:11.7]} 49. Nd5 {[%clk 0:00:16.4]} 49... Rxf3+ {[%clk
0:00:11.7]} 50. Kg2 {[%clk 0:00:16.4]} 50... Rxa3 {[%clk 0:00:12.2]} 51. Ne7
{[%clk 0:00:16.3]} 51... Kg7 {[%clk 0:00:11.6]} 52. Rxd6 {[%clk 0:00:14.3]}
52... Kf7 {[%clk 0:00:11.7]} 53. Nd5 {[%clk 0:00:09.6]} 53... g5 {[%clk
0:00:11.8]} 54. Rf6+ {[%clk 0:00:08.9]} 54... Kg7 {[%clk 0:00:11.6]} 55. Rxf5
{[%clk 0:00:09.3]} 55... Ra2+ {[%clk 0:00:11.5]} 56. Kf1 {[%clk 0:00:08.5]}
56... Ra1+ {[%clk 0:00:11.2]} 57. Ke2 {[%clk 0:00:06.2]} 57... Ng6 {[%clk
0:00:10.8]} 58. Rxg5 {[%clk 0:00:05.7]} 58... Kh6 {[%clk 0:00:11.7]} 59. Rf5
{[%clk 0:00:05.3]} 59... Ra5 {[%clk 0:00:11.8]} 60. h4 {[%clk 0:00:03.2]} 60...
Rxd5 {[%clk 0:00:11.2]} 61. Rxd5 {[%clk 0:00:02.6]} 61... Nf4+ {[%clk
0:00:11.6]} 62. Kf3 {[%clk 0:00:02.2]} 62... Nxd5 {[%clk 0:00:12.5]} 0-1

[Event "Late-Titled-Tuesday-Blitz-April-30-2024"]
[Site "Chess.com"]
[Date "2024.04.30"]
[Round "1"]
[White "ArtemDyachuk"]
[Black "OppieZippy"]
[Result "1-0"]
[WhiteElo "2700"]
[BlackElo "2403"]
[TimeControl "180+1"]
[EndTime "14:08:37 PDT"]
[Termination "ArtemDyachuk won by resignation"]

1. e4 {[%clk 0:02:59.4]} 1... a6 {[%clk 0:02:54.3]} 2. d4 {[%clk 0:02:58.4]}
2... e6 {[%clk 0:02:53.1]} 3. Nf3 {[%clk 0:02:55.5]} 3... d5 {[%clk 0:02:52.3]}
4. Nbd2 {[%clk 0:02:54.1]} 4... Bd7 {[%clk 0:02:40.7]} 5. Bd3 {[%clk 0:01:59.2]}
5... Bb5 {[%clk 0:02:38.2]} 6. c4 {[%clk 0:01:53.1]} 6... dxc4 {[%clk
0:02:37.4]} 7. Nxc4 {[%clk 0:01:53.2]} 7... Nf6 {[%clk 0:02:35]} 8. O-O {[%clk
0:01:12.3]} 8... Be7 {[%clk 0:02:32.4]} 9. Re1 {[%clk 0:01:10.6]} 9... Nc6
{[%clk 0:02:29.1]} 10. a4 {[%clk 0:01:08.5]} 10... Bxc4 {[%clk 0:02:28.8]} 11.
Bxc4 {[%clk 0:01:09.4]} 11... O-O {[%clk 0:02:27.5]} 12. h3 {[%clk 0:01:00.5]}
12... Na5 {[%clk 0:02:26]} 13. Ba2 {[%clk 0:00:59.9]} 13... c5 {[%clk 0:02:25]}
14. d5 {[%clk 0:00:46.7]} 14... exd5 {[%clk 0:02:24.9]} 15. e5 {[%clk
0:00:39.7]} 15... Nd7 {[%clk 0:02:15.5]} 16. Qxd5 {[%clk 0:00:36.6]} 16... Qc7
{[%clk 0:02:08.5]} 17. e6 {[%clk 0:00:34.7]} 17... Nf6 {[%clk 0:02:07.6]} 18.
exf7+ {[%clk 0:00:34.3]} 18... Kh8 {[%clk 0:02:07.6]} 19. Qf5 {[%clk 0:00:31.8]}
19... c4 {[%clk 0:02:00]} 20. Ng5 {[%clk 0:00:25.4]} 20... Qc5 {[%clk
0:01:45.4]} 21. Qxc5 {[%clk 0:00:21.6]} 21... Bxc5 {[%clk 0:01:46.3]} 22. Ne6
{[%clk 0:00:22]} 22... Bd6 {[%clk 0:01:33.2]} 23. Nxf8 {[%clk 0:00:18.5]} 23...
Rxf8 {[%clk 0:01:34.1]} 24. Bd2 {[%clk 0:00:19.3]} 24... Nb3 {[%clk 0:01:31.4]}
25. Bxb3 {[%clk 0:00:19.2]} 25... cxb3 {[%clk 0:01:32.3]} 26. Bc3 {[%clk
0:00:19.6]} 26... Rxf7 {[%clk 0:01:30.4]} 27. Rad1 {[%clk 0:00:19.2]} 27... Bc7
{[%clk 0:01:26.9]} 28. Re6 {[%clk 0:00:18.1]} 28... h6 {[%clk 0:01:25.8]} 29.
Bxf6 {[%clk 0:00:17.7]} 29... gxf6 {[%clk 0:01:25.5]} 30. Rd3 {[%clk 0:00:17.7]}
30... Be5 {[%clk 0:01:22.8]} 31. Rxb3 {[%clk 0:00:17.4]} 31... Rd7 {[%clk
0:01:19.5]} 32. g3 {[%clk 0:00:17.3]} 32... Rd4 {[%clk 0:01:17]} 33. Rxb7 {[%clk
0:00:16.7]} 33... Rd8 {[%clk 0:01:11.8]} 34. Rxa6 {[%clk 0:00:16.4]} 34... Rd1+
{[%clk 0:01:08.7]} 35. Kg2 {[%clk 0:00:16.1]} 35... Rd8 {[%clk 0:01:09.6]} 36.
Rba7 {[%clk 0:00:16.1]} 36... Rd2 {[%clk 0:01:07.1]} 37. Re7 {[%clk 0:00:14.4]}
37... Rd8 {[%clk 0:01:06.9]} 38. Rae6 {[%clk 0:00:13.4]} 38... Rd2 {[%clk
0:01:03.8]} 39. Rxe5 {[%clk 0:00:09]} 39... fxe5 {[%clk 0:01:03.7]} 40. Rxe5
{[%clk 0:00:09]} 40... Rxb2 {[%clk 0:01:04.6]} 41. a5 {[%clk 0:00:09.2]} 41...
Kg7 {[%clk 0:01:04.1]} 42. g4 {[%clk 0:00:09.8]} 42... Ra2 {[%clk 0:01:04.1]}
43. Rf5 {[%clk 0:00:09.6]} 43... Kg6 {[%clk 0:01:03.8]} 44. Kg3 {[%clk 0:00:10]}
44... Ra3+ {[%clk 0:01:04.2]} 45. f3 {[%clk 0:00:10.4]} 45... Ra1 {[%clk
0:01:04.3]} 46. h4 {[%clk 0:00:10.7]} 46... Ra4 {[%clk 0:01:02.4]} 47. h5+
{[%clk 0:00:10.8]} 47... Kg7 {[%clk 0:01:02.6]} 48. Rb5 {[%clk 0:00:10.5]} 48...
Ra1 {[%clk 0:01:01.9]} 49. Rb7+ {[%clk 0:00:09.4]} 49... Kf6 {[%clk 0:01:01.4]}
50. Rb6+ {[%clk 0:00:09.4]} 50... Kg7 {[%clk 0:01:01.4]} 51. a6 {[%clk
0:00:08.8]} 51... Ra4 {[%clk 0:01:01.3]} 52. Rb7+ {[%clk 0:00:07.9]} 52... Kf6
{[%clk 0:01:00.9]} 53. a7 {[%clk 0:00:07.7]} 53... Kg5 {[%clk 0:00:59.7]} 54.
Rg7+ {[%clk 0:00:07.1]} 54... Kf6 {[%clk 0:00:59.3]} 55. Rg6+ {[%clk 0:00:06.5]}
55... Kf7 {[%clk 0:00:59.2]} 56. Rxh6 {[%clk 0:00:07]} 56... Kg7 {[%clk
0:00:58.3]} 57. Rg6+ {[%clk 0:00:07.3]} 57... Kh7 {[%clk 0:00:58.3]} 58. Re6
{[%clk 0:00:07.6]} 58... Rxa7 {[%clk 0:00:58.3]} 59. g5 {[%clk 0:00:07.8]} 59...
Ra1 {[%clk 0:00:58.1]} 60. Kg4 {[%clk 0:00:07.5]} 60... Ra5 {[%clk 0:00:58.1]}
61. f4 {[%clk 0:00:07.4]} 61... Rb5 {[%clk 0:00:58.3]} 62. h6 {[%clk 0:00:07.3]}
62... Ra5 {[%clk 0:00:57.7]} 63. Re7+ {[%clk 0:00:07.1]} 63... Kg8 {[%clk
0:00:57.2]} 64. g6 {[%clk 0:00:07.4]} 64... Kf8 {[%clk 0:00:56.9]} 65. Re6
{[%clk 0:00:06.9]} 65... Ra1 {[%clk 0:00:56]} 66. g7+ {[%clk 0:00:06.8]} 66...
Kf7 {[%clk 0:00:56]} 67. Re5 {[%clk 0:00:06.2]} 67... Rg1+ {[%clk 0:00:53.8]}
68. Kf3 {[%clk 0:00:05.1]} 68... Rh1 {[%clk 0:00:53.7]} 69. Re7+ {[%clk
0:00:03.4]} 69... Kxe7 {[%clk 0:00:51.2]} 70. g8=Q {[%clk 0:00:03.8]} 70... Rf1+
{[%clk 0:00:51.2]} 71. Ke2 {[%clk 0:00:04.1]} 71... Rh1 {[%clk 0:00:46]} 72.
Qg7+ {[%clk 0:00:04.1]} 72... Ke6 {[%clk 0:00:46]} 73. h7 {[%clk 0:00:04.6]}
73... Rh2+ {[%clk 0:00:46.7]} 74. Kf3 {[%clk 0:00:04.8]} 74... Rh3+ {[%clk
0:00:47.2]} 75. Ke4 {[%clk 0:00:04.8]} 75... Rh1 {[%clk 0:00:46.7]} 76. h8=Q
{[%clk 0:00:04.7]} 76... Re1+ {[%clk 0:00:47.1]} 77. Kf3 {[%clk 0:00:04.4]}
77... Rf1+ {[%clk 0:00:47.7]} 78. Ke2 {[%clk 0:00:04.7]} 78... Rb1 {[%clk
0:00:48.6]} 79. Qe5+ {[%clk 0:00:04.7]} 79... Kd7 {[%clk 0:00:48.9]} 80. Qh7+
{[%clk 0:00:05.2]} 80... Kc6 {[%clk 0:00:49.8]} 81. Qc2+ {[%clk 0:00:05.4]}
81... Kb6 {[%clk 0:00:50.7]} 82. Qxb1+ {[%clk 0:00:05.4]} 82... Ka6 {[%clk
0:00:51.2]} 83. Qbb5+ {[%clk 0:00:05.2]} 83... Ka7 {[%clk 0:00:51.1]} 84. Qd4+
{[%clk 0:00:05.7]} 1-0